fUSD/lending_fUSD_20250630
["ID","MTS","AMOUNT","RATE_DAILY","PERIOD"]
[368686910,1751297235838,-515.09845458,0.00013986,2]
[368686911,1751297235860,-151.0,0.00013986,2]
[368686912,1751297235883,-1720.82,0.00013986,2]
[368686913,1751297235905,-490.0,0.00013986,2]
[368686914,1751297235927,-981.76,0.00013986,2]
[368686915,1751297235948,-1961.33,0.00013986,2]
[368686916,1751297235970,-490.0,0.00013986,2]
[368686917,1751297235992,-1379.62,0.00013986,2]
[368686918,1751297236016,-490.0,0.00013986,2]
[368686919,1751297236038,-849.4,0.00013986,2]
[368686920,1751297236060,-151.0,0.00013986,2]
[368686921,1751297236082,-502.22,0.00013986,2]
[368686922,1751297236104,-490.0,0.00013986,2]
[368686923,1751297236126,-1126.53,0.00013986,2]
[368686924,1751297236148,-550.93,0.00013986,2]
[368686925,1751297236172,-490.0,0.00013986,2]
[368686926,1751297236195,-151.0,0.00013986,2]
[368686927,1751297236219,-1413.19,0.00013986,2]
[368686928,1751297236241,-490.0,0.00013986,2]
[368686929,1751297236266,-1705.39,0.00013986,2]
[368686930,1751297236288,-490.0,0.00013986,2]
[368686931,1751297236310,-247.0,0.00013986,2]
[368686932,1751297236333,-624.0,0.00013986,2]
[368686933,1751297236356,-490.0,0.00013986,2]
[368686934,1751297236378,-151.0,0.00013986,2]
[368686935,1751297236401,-783.62,0.00013986,2]
[368686936,1751297236424,-342.09158359,0.00013986,2]
[368686937,1751297236446,-490.0,0.00013986,2]
[368686938,1751297236468,-490.0,0.00013986,2]
[368686939,1751297236491,-490.0,0.00013986,2]
[368686940,1751297236516,-490.0,0.00013986,2]
[368686941,1751297236542,-490.0,0.00013986,2]
[368686942,1751297236566,-490.0,0.00013986,2]
[368686943,1751297236589,-500.0,0.00013986,2]
[368686944,1751297236612,-490.0,0.00013986,2]
[368686945,1751297236636,-1884.13,0.00013986,2]
[368686946,1751297236659,-490.0,0.00013986,2]
[368686947,1751297236683,-786.86,0.00013986,2]
[368686948,1751297236706,-1603.56,0.00013986,2]
[368686949,1751297236729,-1022.33,0.00013986,2]
[368686950,1751297236753,-490.0,0.00013986,2]
[368686951,1751297236778,-1522.75,0.00013986,2]
[368686952,1751297236802,-772.71,0.00013986,2]
[368686953,1751297236824,-490.0,0.00013986,2]
[368686954,1751297236848,-1163.61,0.00013986,2]
[368686955,1751297236871,-490.0,0.00013986,2]
[368686956,1751297236894,-2124.53,0.00013986,2]
[368686957,1751297236919,-490.0,0.00013986,2]
[368686958,1751297236942,-490.0,0.00013986,2]
[368686959,1751297236965,-490.0,0.00013986,2]
[368686960,1751297236987,-151.0,0.00013986,2]
[368686961,1751297237009,-186.229241,0.00013986,2]
[368686962,1751297237033,-1389.52,0.00013986,2]
[368686963,1751297237056,-754.05,0.00013986,2]
[368686964,1751297237078,-534.45,0.00013986,2]
[368686965,1751297237101,-1266.04,0.00013986,2]
[368686966,1751297237123,-997.28,0.00013986,2]
[368686967,1751297237145,-490.0,0.00013986,2]
[368686968,1751297237170,-490.0,0.00013986,2]
[368686969,1751297237193,-1867.21,0.00013986,2]
[368686970,1751297237218,-490.0,0.00013986,2]
[368686971,1751297237244,-151.0,0.00013986,2]
[368686972,1751297237271,-151.0,0.00013986,2]
[368686973,1751297237296,-151.0,0.00013986,2]
[368686974,1751297237320,-151.0,0.00013986,2]
[368686975,1751297237343,-490.0,0.00013986,2]
[368686976,1751297237366,-490.0,0.00013986,2]
[368686977,1751297237388,-490.0,0.00013986,2]
[368686978,1751297237411,-490.0,0.00013986,2]
[368686979,1751297237434,-186.92399945,0.00013986,2]
[368686980,1751297237456,-490.0,0.00013986,2]
[368686981,1751297237479,-151.0,0.00013986,2]
[368686982,1751297237501,-151.0,0.00013986,2]
[368686983,1751297237524,-490.0,0.00013986,2]
[368686984,1751297237546,-490.0,0.00013986,2]
[368686985,1751297237569,-1410.48,0.00013986,2]
[368686986,1751297237592,-490.0,0.00013986,2]
[368686987,1751297237614,-151.0,0.00013986,2]
[368686988,1751297237639,-490.0,0.00013986,2]
[368686989,1751297237662,-151.0,0.00013986,2]
[368686990,1751297237684,-151.0,0.00013986,2]
[368686991,1751297237706,-151.0,0.00013986,2]
[368686992,1751297237729,-490.0,0.00013986,2]
[368686993,1751297237753,-490.0,0.00013986,2]
[368686994,1751297237777,-151.0,0.00013986,2]
[368686995,1751297237799,-490.0,0.00013986,2]
[368686996,1751297237821,-151.0,0.00013986,2]
[368686997,1751297237844,-151.0,0.00013986,2]
[368686998,1751297237868,-151.0,0.00013986,2]
[368686999,1751297237890,-922.2,0.00013986,2]
[368687000,1751297237912,-151.0,0.00013986,2]
[368687001,1751297237934,-151.0,0.00013986,2]
[368687002,1751297237955,-494.74,0.00013986,2]
[368687003,1751297237977,-490.0,0.00013986,2]
[368687004,1751297237999,-705.47,0.00013986,2]
[368687005,1751297238024,-1679.51,0.00013986,2]
[368687006,1751297238051,-490.0,0.00013986,2]
[368687007,1751297238074,-490.0,0.00013986,2]
[368687008,1751297238097,-2241.11,0.00013986,2]
[368687009,1751297238122,-2234.92,0.00013986,2]
[368687010,1751297238145,-490.0,0.00013986,2]
[368687011,1751297238177,-163.39094,0.00013986,2]
[368687012,1751297238199,-490.0,0.00013986,2]
[368687013,1751297238222,-490.0,0.00013986,2]
[368687014,1751297238252,-1265.36,0.00013986,2]
[368687015,1751297238279,-1100.84,0.00013986,2]
[368687016,1751297238303,-490.0,0.00013986,2]
[368687017,1751297238328,-3127.88,0.00013986,2]
[368687018,1751297238352,-550.45,0.00013986,2]
[368687019,1751297238378,-151.0,0.00013986,2]
[368687020,1751297238402,-490.0,0.00013986,2]
[368687021,1751297238745,-171.486947,0.00013986,2]
[368687022,1751297238778,-816.02,0.00013986,2]
[368687023,1751297238804,-1265.37,0.00013986,2]
[368687024,1751297238828,-490.0,0.00013986,2]
[368687025,1751297238852,-490.0,0.00013986,2]
[368687026,1751297238875,-151.0,0.00013986,2]
[368687027,1751297238898,-151.0,0.00013986,2]
[368687028,1751297238920,-750.09,0.00013986,2]
[368687029,1751297238942,-490.0,0.00013986,2]
[368687030,1751297238964,-490.0,0.00013986,2]
[368687031,1751297238987,-490.0,0.00013986,2]
[368687032,1751297239010,-151.0,0.00013986,2]
[368687033,1751297239034,-151.0,0.00013986,2]
[368687034,1751297239059,-151.0,0.00013986,2]
[368687035,1751297239083,-151.0,0.00013986,2]
[368687036,1751297239106,-151.0,0.00013986,2]
[368687037,1751297239129,-151.0,0.00013986,2]
[368687038,1751297239153,-1305.19,0.00013986,2]
[368687039,1751297239178,-151.499243,0.00013986,2]
[368687040,1751297239201,-1042.17,0.00013986,2]
[368687041,1751297239224,-1056.89,0.00013986,2]
[368687042,1751297239248,-490.0,0.00013986,2]
[368687043,1751297239274,-832.06,0.00013986,2]
[368687044,1751297239298,-151.0,0.00013986,2]
[368687045,1751297239321,-151.0,0.00013986,2]
[368687046,1751297239345,-151.0,0.00013986,2]
[368687047,1751297239369,-151.0,0.00013986,2]
[368687048,1751297239393,-151.0,0.00013986,2]
[368687049,1751297239416,-151.0,0.00013986,2]
[368687050,1751297239440,-151.0,0.00013986,2]
[368687051,1751297239462,-490.0,0.00013986,2]
[368687052,1751297239486,-2576.86,0.00013986,2]
[368687053,1751297239509,-151.0,0.00013986,2]
[368687054,1751297239533,-490.0,0.00013986,2]
[368687055,1751297239555,-490.0,0.00013986,2]
[368687056,1751297239577,-1441.58,0.00013986,2]
[368687057,1751297239599,-867.77,0.00013986,2]
[368687058,1751297239621,-2129.0,0.00013986,2]
[368687059,1751297239644,-151.0,0.00013986,2]
[368687060,1751297239667,-151.0,0.00013986,2]
[368687061,1751297239689,-151.0,0.00013986,2]
[368687062,1751297239711,-490.0,0.00013986,2]
[368687063,1751297239733,-490.0,0.00013986,2]
[368687064,1751297239758,-151.0,0.00013986,2]
[368687065,1751297239783,-1007.89,0.00013986,2]
[368687066,1751297239807,-151.0,0.00013986,2]
[368687067,1751297239830,-151.0,0.00013986,2]
[368687068,1751297239856,-151.0,0.00013986,2]
[368687069,1751297239879,-490.0,0.00013986,2]
[368687070,1751297239901,-521.70910602,0.00013986,2]
[368687071,1751297239925,-2553.75086984,0.00013986,2]
[368687072,1751297309531,516.0,0.00012542,2]
[368687075,1751297321432,359.41238981,0.00010136,2]
[368687085,1751297432285,-157.32,0.00013159,2]
[368687086,1751297432296,-250.0,0.00013264,2]
[368687087,1751297432306,-4259.81151674,0.00013368,2]
[368687088,1751297432316,-1000.0,0.000135,2]
[368687089,1751297432326,-159.639649,0.00013709,2]
[368687090,1751297432336,-284.01267496,0.00013788,2]
[368687091,1751297432346,-1200.0,0.00013884,2]
[368687092,1751297432355,-5000.0,0.00013885,2]
[368687093,1751297432365,-490.0,0.00013888,2]
[368687094,1751297432375,-490.0,0.00013888,2]
[368687095,1751297432384,-1462.1,0.00013888,2]
[368687096,1751297432394,-1268.21,0.00013888,2]
[368687097,1751297432404,-490.0,0.00013888,2]
[368687098,1751297432414,-490.0,0.00013888,2]
[368687099,1751297432423,-490.0,0.00013888,2]
[368687100,1751297432433,-1649.12,0.00013888,2]
[368687101,1751297432443,-2018.19,0.00013888,2]
[368687102,1751297432453,-1322.14,0.00013888,2]
[368687103,1751297432462,-1498.29,0.00013888,2]
[368687104,1751297432472,-1079.6,0.00013888,2]
[368687105,1751297432482,-1984.82,0.00013888,2]
[368687106,1751297432491,-2081.32,0.00013888,2]
[368687107,1751297432500,-678.34,0.00013888,2]
[368687108,1751297432511,-750.97,0.00013888,2]
[368687109,1751297432521,-920.33,0.00013888,2]
[368687110,1751297432530,-500.0,0.00013888,2]
[368687111,1751297432540,-1202.67,0.00013888,2]
[368687112,1751297432550,-490.0,0.00013888,2]
[368687113,1751297432560,-1015.16,0.00013888,2]
[368687114,1751297432570,-621.4,0.00013888,2]
[368687116,1751297432580,-2142.86,0.00013888,2]
[368687118,1751297432589,-490.0,0.00013888,2]
[368687120,1751297432599,-754.81,0.00013888,2]
[368687122,1751297432610,-979.74,0.00013888,2]
[368687124,1751297432619,-490.0,0.00013888,2]
[368687126,1751297432629,-1115.13,0.00013888,2]
[368687128,1751297432638,-514.56,0.00013888,2]
[368687130,1751297432647,-1213.29,0.00013888,2]
[368687132,1751297432661,-1572.68,0.00013898,2]
[368687134,1751297432670,-2787.41,0.00013898,2]
[368687135,1751297432680,-1375.44,0.00013898,2]
[368687136,1751297432689,-1702.67,0.00013898,2]
[368687137,1751297432699,-4036.6,0.00013898,2]
[368687138,1751297432709,-2403.02,0.00013898,2]
[368687139,1751297432718,-1384.76,0.00013898,2]
[368687141,1751297432728,-1288.03,0.00013898,2]
[368687144,1751297432737,-578.41,0.00013898,2]
[368687147,1751297432746,-936.88,0.00013898,2]
[368687150,1751297432756,-1564.95,0.00013898,2]
[368687152,1751297432765,-1476.08,0.00013898,2]
[368687153,1751297432775,-1652.59,0.00013898,2]
[368687154,1751297432784,-6511.66,0.00013898,2]
[368687155,1751297432793,-738.07,0.00013898,2]
[368687156,1751297432803,-1323.13,0.00013898,2]
[368687157,1751297432814,-1438.45,0.00013898,2]
[368687158,1751297432823,-1578.09,0.00013898,2]
[368687159,1751297432833,-668.76,0.00013898,2]
[368687160,1751297432843,-1818.29,0.00013898,2]
[368687161,1751297432853,-2416.17,0.00013898,2]
[368687162,1751297432863,-1378.6,0.00013898,2]
[368687163,1751297432872,-797.61415844,0.000139,2]
[368687164,1751297432882,-3657.64123456,0.000139,2]
[368687165,1751297432892,-5957.6959403,0.0001397,2]
[368687166,1751297432903,-490.0,0.00013978,2]
[368687167,1751297432915,-490.0,0.00013978,2]
[368687168,1751297432924,-490.0,0.00013978,2]
[368687169,1751297432934,-490.0,0.00013978,2]
[368687170,1751297432943,-1372.16,0.00013978,2]
[368687171,1751297432953,-746.91,0.00013978,2]
[368687172,1751297432962,-1285.2,0.00013978,2]
[368687173,1751297432972,-2240.93,0.00013978,2]
[368687174,1751297432981,-490.0,0.00013978,2]
[368687175,1751297432991,-4761.63,0.00013978,2]
[368687176,1751297433001,-490.0,0.00013978,2]
[368687177,1751297433010,-879.78,0.00013978,2]
[368687178,1751297433019,-608.83,0.00013978,2]
[368687179,1751297433028,-490.0,0.00013978,2]
[368687180,1751297433038,-1550.69,0.00013978,2]
[368687181,1751297433048,-1729.24,0.00013978,2]
[368687182,1751297433058,-307.27820905,0.00013978,2]
[368687183,1751297433067,-1935.92,0.00013978,2]
[368687184,1751297433077,-1184.18,0.00013978,2]
[368687185,1751297433088,-490.0,0.00013978,2]
[368687186,1751297433098,-307.89,0.00013978,2]
[368687187,1751297433107,-1408.84,0.00013978,2]
[368687188,1751297433117,-2198.73,0.00013978,2]
[368687189,1751297433127,-490.0,0.00013978,2]
[368687190,1751297433136,-1561.47,0.00013978,2]
[368687191,1751297433146,-10557.6206913,0.00013978,2]
[368687192,1751297433160,-1412.74,0.00013978,2]
[368687193,1751297433170,-1472.77,0.00013978,2]
[368687194,1751297433181,-1626.35,0.00013978,2]
[368687195,1751297433191,-490.0,0.00013978,2]
[368687196,1751297433201,-898.89,0.00013978,2]
[368687197,1751297433211,-1374.72,0.00013978,2]
[368687198,1751297433222,-3877.44,0.00013978,2]
[368687199,1751297433232,-65094.4718684,0.00013978,2]
[368687200,1751297433242,-919.89,0.00013978,2]
[368687201,1751297433251,-684.25,0.00013978,2]
[368687202,1751297433262,-912.09,0.00013978,2]
[368687203,1751297433271,-3344.91,0.00013978,2]
[368687204,1751297433281,-4439.95,0.00013978,2]
[368687205,1751297433291,-490.0,0.00013978,2]
[368687206,1751297433302,-2974.49,0.00013978,2]
[368687207,1751297433312,-624.55,0.00013978,2]
[368687208,1751297433322,-797.14,0.00013978,2]
[368687209,1751297433332,-5255.68,0.00013978,2]
[368687210,1751297433342,-3806.25,0.00013978,2]
[368687211,1751297433352,-1146.5,0.00013978,2]
[368687212,1751297433362,-5482.65,0.00013978,2]
[368687213,1751297433372,-1839.08,0.00013978,2]
[368687214,1751297433382,-1418.91,0.00013978,2]
[368687215,1751297433392,-3212.67,0.00013978,2]
[368687216,1751297433404,-1148.06,0.00013978,2]
[368687217,1751297433413,-48194.4147441,0.00013978,2]
[368687218,1751297433424,-3466.29,0.00013978,2]
[368687219,1751297433434,-894.03,0.00013978,2]
[368687220,1751297433444,-2290.66,0.00013978,2]
[368687221,1751297433453,-490.0,0.00013979,2]
[368687222,1751297433463,-490.0,0.0001398,2]
[368687223,1751297433474,-490.0,0.0001398,2]
[368687224,1751297433484,-490.0,0.0001398,2]
[368687225,1751297433494,-490.0,0.0001398,2]
[368687226,1751297433504,-490.0,0.0001398,2]
[368687227,1751297433515,-490.0,0.0001398,2]
[368687228,1751297433524,-490.0,0.0001398,2]
[368687229,1751297433535,-490.0,0.0001398,2]
[368687230,1751297433545,-254.8419874,0.0001398,2]
[368687231,1751297433556,-490.0,0.0001398,2]
[368687232,1751297433567,-404.5712414,0.0001398,2]
[368687233,1751297433578,-490.0,0.0001398,2]
[368687234,1751297433588,-490.0,0.0001398,2]
[368687235,1751297433599,-341.81424652,0.0001398,2]
[368687236,1751297433610,-313.55979703,0.0001398,2]
[368687237,1751297433621,-490.0,0.0001398,2]
[368687238,1751297433632,-490.0,0.0001398,2]
[368687239,1751297433642,-490.0,0.0001398,2]
[368687240,1751297433654,-341.37616338,0.0001398,2]
[368687241,1751297433664,-490.0,0.0001398,2]
[368687242,1751297433675,-490.0,0.0001398,2]
[368687243,1751297433685,-490.0,0.0001398,2]
[368687244,1751297433695,-326.51010517,0.0001398,2]
[368687245,1751297433705,-192.57168225,0.0001398,2]
[368687246,1751297433716,-490.0,0.0001398,2]
[368687247,1751297433726,-490.0,0.0001398,2]
[368687248,1751297433735,-490.0,0.00013981,2]
[368687249,1751297433746,-1715.96,0.00013981,2]
[368687250,1751297433755,-490.0,0.00013981,2]
[368687251,1751297433765,-3186.65,0.00013981,2]
[368687252,1751297433775,-490.0,0.00013981,2]
[368687253,1751297433785,-2257.45,0.00013981,2]
[368687254,1751297433795,-523.91,0.00013981,2]
[368687255,1751297433805,-490.0,0.00013981,2]
[368687256,1751297433816,-1276.28,0.00013981,2]
[368687257,1751297433826,-186.6854947,0.00013981,2]
[368687258,1751297433836,-1029.25,0.00013981,2]
[368687259,1751297433846,-499.32923171,0.00013981,2]
[368687260,1751297433856,-490.0,0.00013981,2]
[368687261,1751297433866,-2625.49,0.00013981,2]
[368687262,1751297433876,-789.33,0.00013981,2]
[368687263,1751297433886,-2100.41,0.00013981,2]
[368687264,1751297433895,-1930.07,0.00013981,2]
[368687265,1751297433908,-490.0,0.00013981,2]
[368687266,1751297433918,-490.0,0.00013981,2]
[368687267,1751297433928,-490.0,0.00013981,2]
[368687268,1751297433938,-2193.41,0.00013981,2]
[368687269,1751297433948,-10009.35,0.00013981,2]
[368687270,1751297433958,-1043.88,0.00013981,2]
[368687271,1751297433969,-490.0,0.00013981,2]
[368687272,1751297433980,-490.0,0.00013981,2]
[368687273,1751297433990,-2253.86,0.00013981,2]
[368687274,1751297434000,-692.91,0.00013981,2]
[368687275,1751297434010,-1900.96,0.00013981,2]
[368687276,1751297434020,-467.87324278,0.00013981,2]
[368687277,1751297434030,-490.0,0.00013981,2]
[368687278,1751297434040,-490.0,0.00013981,2]
[368687279,1751297434050,-8070.18,0.00013981,2]
[368687280,1751297434060,-490.0,0.00013981,2]
[368687281,1751297434070,-31189.32,0.00013981,2]
[368687282,1751297434080,-917.29,0.00013981,2]
[368687283,1751297434091,-651.3,0.00013981,2]
[368687284,1751297434101,-490.0,0.00013981,2]
[368687285,1751297434111,-4180.89,0.00013981,2]
[368687286,1751297434122,-520.08,0.00013981,2]
[368687287,1751297434132,-4580.67,0.00013981,2]
[368687288,1751297434143,-4814.16,0.00013981,2]
[368687289,1751297434156,-650.14,0.00013981,2]
[368687290,1751297434167,-1925.15,0.00013981,2]
[368687291,1751297434177,-671.15,0.00013981,2]
[368687292,1751297434186,-503.07,0.00013981,2]
[368687293,1751297434196,-490.0,0.00013981,2]
[368687294,1751297434206,-3345.33,0.00013981,2]
[368687295,1751297434220,-2226.68,0.00013981,2]
[368687296,1751297434231,-628.36,0.00013981,2]
[368687297,1751297434241,-490.0,0.00013981,2]
[368687298,1751297434251,-1853.72588081,0.00013981,2]
[368687299,1751297435166,-378.95411919,0.00013981,2]
[368687300,1751297435176,-490.0,0.00013981,2]
[368687301,1751297435186,-106.0296324,0.00013981,2]
[368687302,1751297435303,-383.9703676,0.00013981,2]
[368687303,1751297435313,-336.38064358,0.00013981,2]
[368687304,1751297435323,-232.44687107,0.00013981,2]
[368687305,1751297435341,-510.77312893,0.00013981,2]
[368687306,1751297435350,-490.0,0.00013981,2]
[368687307,1751297435360,-1189.47876158,0.00013981,2]
[368687308,1751297435372,-1538.23433557,0.00013981,2]
[368687309,1751297435385,-2146.75690285,0.00013981,2]
[368687310,1751297435394,-2669.82,0.00013981,2]
[368687311,1751297435406,-490.0,0.00013981,2]
[368687312,1751297435416,-502.88,0.00013981,2]
[368687313,1751297435426,-580.4,0.00013981,2]
[368687314,1751297435436,-490.0,0.00013981,2]
[368687315,1751297435446,-7649.81,0.00013981,2]
[368687316,1751297435456,-2998.81,0.00013981,2]
[368687317,1751297435466,-490.0,0.00013981,2]
[368687318,1751297435476,-563.69,0.00013981,2]
[368687319,1751297435486,-490.0,0.00013981,2]
[368687320,1751297435496,-1299.39,0.00013981,2]
[368687321,1751297435506,-490.0,0.00013981,2]
[368687322,1751297435516,-8620.4703561,0.00013981,2]
[368687323,1751297435528,-1330.85,0.00013981,2]
[368687324,1751297435545,-1069.6,0.00013981,2]
[368687325,1751297435558,-5359.698,0.00013981,2]
[368687326,1751297438220,-490.0,0.00013888,2]
[368687327,1751297438230,-490.0,0.00013978,2]
[368687328,1751297438239,-661.41353509,0.00013978,2]
[368687329,1751297438252,-490.0,0.00013978,2]
[368687400,1751297439274,-348.58646491,0.00013978,2]
[368687402,1751297439284,-188.43794804,0.0001398,2]
[368687404,1751297439295,-64.00664402,0.0001398,2]
[368687407,1751297439318,-435.99335598,0.0001398,2]
[368687409,1751297439327,-500.0,0.0001398,2]
[368687411,1751297439336,-500.0,0.0001398,2]
[368687413,1751297439346,-552.87327668,0.0001398,2]
[368687415,1751297439356,-254.08506534,0.0001398,2]
[368687417,1751297439365,-437.88542767,0.0001398,2]
[368687429,1751297439484,-62.11457233,0.0001398,2]
[368687431,1751297439494,-312.74470217,0.0001398,2]
[368687434,1751297439506,-187.25529783,0.0001398,2]
[368687436,1751297439516,-500.0,0.0001398,2]
[368687437,1751297439526,-523.76971417,0.0001398,2]
[368687439,1751297439536,-184.76574857,0.0001398,2]
[368687441,1751297439546,-1169.30070262,0.00013981,2]
[368687617,1751297441388,-66.41094128,0.00013981,2]
[368687619,1751297441398,-25.90059103,0.00013981,2]
[368687622,1751297441414,-464.09940897,0.00013981,2]
[368687624,1751297441424,-490.0,0.00013981,2]
[368687626,1751297441433,-490.0,0.00013981,2]
[368687628,1751297441443,-490.0,0.00013981,2]
[368687630,1751297441452,-358.60739392,0.00013981,2]
[368687806,1751297445225,-167.90260608,0.00013981,2]
[368687807,1751297445235,-67.54567285,0.00013981,2]
[368687808,1751297445914,-490.0,0.00013888,2]
[368687809,1751297445924,-241.00357604,0.00013978,2]
[368687810,1751297445936,-248.99642396,0.00013978,2]
[368687811,1751297445946,-422.45432715,0.00013981,2]
[368687812,1751297445955,-490.0,0.00013984,2]
[368687813,1751297445965,-87.54567285,0.00013984,2]
[368687814,1751297445988,-867.14432715,0.00013984,2]
[368687815,1751297445998,-1217.76,0.00013984,2]
[368687817,1751297446007,-490.0,0.00013984,2]
[368687819,1751297446017,-881.62,0.00013984,2]
[368687821,1751297446026,-429.83561076,0.00013984,2]
[368687822,1751297446036,-490.0,0.00013984,2]
[368687824,1751297446045,-908.23,0.00013984,2]
[368687826,1751297446055,-1245.57,0.00013984,2]
[368687829,1751297446065,-2742.43,0.00013984,2]
[368687830,1751297446075,-1130.96,0.00013984,2]
[368687831,1751297446084,-490.0,0.00013984,2]
[368687832,1751297446096,-1041.4,0.00013984,2]
[368687833,1751297446106,-490.0,0.00013984,2]
[368687834,1751297446115,-490.0,0.00013984,2]
[368687835,1751297446124,-1387.19,0.00013984,2]
[368687837,1751297446134,-986.84,0.00013984,2]
[368687839,1751297446144,-1021.8,0.00013984,2]
[368687841,1751297446153,-898.53,0.00013984,2]
[368687843,1751297446167,-832.27,0.00013984,2]
[368687845,1751297446176,-1278.03,0.00013984,2]
[368687847,1751297446186,-713.07,0.00013984,2]
[368687849,1751297446196,-490.0,0.00013984,2]
[368687851,1751297446206,-4605.17,0.00013984,2]
[368687853,1751297446217,-490.0,0.00013984,2]
[368687855,1751297446229,-1144.86,0.00013984,2]
[368687857,1751297446239,-500.0,0.00013985,2]
[368687858,1751297446248,-612.05,0.00013985,2]
[368687859,1751297446257,-490.0,0.00013985,2]
[368687860,1751297446269,-490.0,0.00013985,2]
[368687861,1751297446279,-1063.39,0.00013985,2]
[368687862,1751297446288,-490.0,0.00013985,2]
[368687863,1751297446298,-68.55888538,0.00013985,2]
[368687864,1751297446315,-421.44111462,0.00013985,2]
[368687865,1751297446324,-490.0,0.00013985,2]
[368687866,1751297446334,-490.0,0.00013985,2]
[368687867,1751297446343,-490.0,0.00013985,2]
[368687868,1751297446353,-490.0,0.00013985,2]
[368687869,1751297446363,-1140.43,0.00013985,2]
[368687870,1751297446373,-697.15,0.00013985,2]
[368687871,1751297446383,-491.38,0.00013985,2]
[368687872,1751297446393,-490.0,0.00013985,2]
[368687873,1751297446403,-741.88,0.00013985,2]
[368687874,1751297446415,-426.77896136,0.00013985,2]
[368687875,1751297446424,-529.33,0.00013985,2]
[368687876,1751297446434,-490.0,0.00013985,2]
[368687877,1751297446444,-490.0,0.00013986,2]
[368687878,1751297446454,-490.0,0.00013986,2]
[368687879,1751297446463,-572.33,0.00013986,2]
[368687880,1751297446473,-1011.64,0.00013986,2]
[368687881,1751297446483,-1764.06,0.00013986,2]
[368687882,1751297446493,-490.0,0.00013986,2]
[368687883,1751297446503,-151.0,0.00013986,2]
[368687884,1751297446512,-151.0,0.00013986,2]
[368687885,1751297446522,-702.47,0.00013986,2]
[368687886,1751297446532,-490.0,0.00013986,2]
[368687887,1751297446542,-1617.64,0.00013986,2]
[368687888,1751297446552,-490.0,0.00013986,2]
[368687889,1751297446561,-983.7,0.00013986,2]
[368687890,1751297446571,-490.0,0.00013986,2]
[368687891,1751297446581,-700.62,0.00013986,2]
[368687892,1751297446591,-1855.21,0.00013986,2]
[368687893,1751297446601,-490.0,0.00013986,2]
[368687894,1751297446610,-820.89,0.00013986,2]
[368687895,1751297446620,-604.12,0.00013986,2]
[368687896,1751297446629,-490.0,0.00013986,2]
[368687897,1751297446639,-895.92,0.00013986,2]
[368687898,1751297446648,-490.0,0.00013986,2]
[368687899,1751297446657,-490.0,0.00013986,2]
[368687900,1751297446670,-490.0,0.00013986,2]
[368687914,1751297446810,-490.0,0.00013986,2]
[368687916,1751297446821,-490.0,0.00013986,2]
[368687918,1751297446831,-490.0,0.00013986,2]
[368687920,1751297446841,-490.0,0.00013986,2]
[368687922,1751297446850,-490.0,0.00013986,2]
[368687924,1751297446860,-718.52,0.00013986,2]
[368687926,1751297446869,-1007.75,0.00013986,2]
[368687927,1751297446879,-490.0,0.00013986,2]
[368687928,1751297446888,-599.16,0.00013986,2]